fUSD/lending_fUSD_20260207
["ID","MTS","AMOUNT","RATE_DAILY","PERIOD"]
[404709152,1770487844803,-500.0,0.00035616,120]
[404709153,1770487844812,-500.0,0.00035616,120]
[404709154,1770487844822,-500.0,0.00035616,120]
[404709155,1770487844833,-500.0,0.00035616,120]
[404709156,1770487844843,-500.0,0.00035616,120]
[404709157,1770487844855,-193.55851263,0.00035616,120]
[404709158,1770487844866,-500.0,0.00035616,120]
[404709159,1770487844875,-500.0,0.00035616,120]
[404709160,1770487844884,-547.11294971,0.00035616,120]
[404709161,1770487844894,-500.0,0.00035616,120]
[404709162,1770487844903,-500.0,0.00035616,120]
[404709163,1770487844913,-500.0,0.00035616,120]
[404709164,1770487844922,-534.10916098,0.00035616,120]
[404709165,1770487844932,-500.0,0.00035616,120]
[404709166,1770487844942,-500.0,0.00035616,120]
[404709167,1770487844952,-500.0,0.00035616,120]
[404709168,1770487844961,-500.0,0.00035616,120]
[404709169,1770487844972,-268.29020358,0.00035616,120]
[404709170,1770487844982,-500.0,0.00035616,120]
[404709171,1770487844991,-534.83320827,0.00035616,120]
[404709172,1770487845001,-500.0,0.00035616,120]
[404709173,1770487845011,-507.15464141,0.00035616,120]
[404709174,1770487845021,-246.606968,0.00035616,120]
[404709175,1770487845031,-500.0,0.00035616,120]
[404709177,1770487845041,-500.0,0.00035616,120]
[404709179,1770487845051,-500.0,0.00035616,120]
[404709180,1770487845061,-500.0,0.00035616,120]
[404709181,1770487845073,-204.4124626,0.00035616,120]
[404709182,1770487845082,-500.0,0.00035616,120]
[404709183,1770487845093,-500.0,0.00035616,120]
[404709184,1770487845104,-500.0,0.00035616,120]
[404709185,1770487845113,-543.61204815,0.00035616,120]
[404709186,1770487845123,-500.0,0.00035616,120]
[404709187,1770487845133,-500.0,0.00035616,120]
[404709188,1770487845142,-500.0,0.00035616,120]
[404709189,1770487845151,-500.0,0.00035616,120]
[404709190,1770487845161,-500.0,0.00035616,120]
[404709191,1770487845171,-500.0,0.00035616,120]
[404709192,1770487845185,-500.0,0.00035616,120]
[404709193,1770487845195,-500.0,0.00035616,120]
[404709194,1770487845205,-500.0,0.00035616,120]
[404709195,1770487845215,-500.0,0.00035616,120]
[404709196,1770487845226,-500.0,0.00035616,120]
[404709197,1770487845235,-500.0,0.00035616,120]
[404709198,1770487845245,-546.32796775,0.00035616,120]
[404709199,1770487845255,-500.0,0.00035616,120]
[404709200,1770487845264,-500.0,0.00035616,120]
[404709201,1770487845275,-500.0,0.00035616,120]
[404709202,1770487845285,-500.0,0.00035616,120]
[404709203,1770487845295,-178.14228765,0.00035616,120]
[404709204,1770487845305,-219.22573578,0.00035616,120]
[404709205,1770487845315,-500.0,0.00035616,120]
[404709206,1770487845324,-500.0,0.00035616,120]
[404709207,1770487845334,-500.0,0.00035616,120]
[404709208,1770487845344,-500.0,0.00035616,120]
[404709209,1770487845354,-500.0,0.00035616,120]
[404709210,1770487845364,-500.0,0.00035616,120]
[404709211,1770487845373,-500.0,0.00035616,120]
[404709212,1770487845383,-500.0,0.00035616,120]
[404709213,1770487845393,-500.0,0.00035616,120]
[404709214,1770487845402,-551.01387258,0.00035616,120]
[404709215,1770487845412,-358.70613154,0.00035616,120]
[404709216,1770487845423,-281.77834943,0.00035616,120]
[404709217,1770487845433,-501.01345191,0.00035616,120]
[404709218,1770487845442,-500.0,0.00035616,120]
[404709219,1770487845452,-500.0,0.00035616,120]
[404709220,1770487845462,-341.35789632,0.00035616,120]
[404709221,1770487845471,-500.0,0.00035616,120]
[404709222,1770487845482,-520.33119442,0.00035616,120]
[404709223,1770487845492,-384.39588563,0.00035616,120]
[404709224,1770487845504,-500.0,0.00035616,120]
[404709225,1770487845514,-500.0,0.00035616,120]
[404709226,1770487845524,-500.0,0.00035616,120]
[404709227,1770487845534,-500.0,0.00035616,120]
[404709228,1770487845550,-500.0,0.00035616,120]
[404709229,1770487845563,-232.05481349,0.00035616,120]
[404709230,1770487845576,-500.0,0.00035616,120]
[404709231,1770487845588,-500.0,0.00035616,120]
[404709232,1770487845602,-500.0,0.00035616,120]
[404709233,1770487845615,-468.05477039,0.00035616,120]
[404709234,1770487845627,-500.0,0.00035616,120]
[404709235,1770487845639,-500.0,0.00035616,120]
[404709236,1770487845652,-500.0,0.00035616,120]
[404709237,1770487845662,-500.0,0.00035616,120]
[404709238,1770487845672,-500.0,0.00035616,120]
[404709239,1770487845683,-500.0,0.00035616,120]
[404709240,1770487845693,-500.0,0.00035616,120]
[404709241,1770487845703,-500.0,0.00035616,120]
[404709242,1770487845715,-500.0,0.00035616,120]
[404709243,1770487845725,-452.39213667,0.00035616,120]
[404709244,1770487845737,-500.0,0.00035616,120]
[404709245,1770487845748,-500.0,0.00035616,120]
[404709246,1770487845762,-500.0,0.00035616,120]
[404709247,1770487845774,-525.78766482,0.00035616,120]
[404709248,1770487845786,-500.0,0.00035616,120]
[404709249,1770487845799,-500.0,0.00035616,120]
[404709250,1770487845811,-540.18540068,0.00035616,120]
[404709251,1770487845822,-500.0,0.00035616,120]
[404709252,1770487845833,-500.0,0.00035616,120]
[404709253,1770487845844,-500.0,0.00035616,120]
[404709254,1770487845855,-500.0,0.00035616,120]
[404709255,1770487845865,-500.0,0.00035616,120]
[404709256,1770487845875,-500.0,0.00035616,120]
[404709257,1770487845886,-500.0,0.00035616,120]
[404709258,1770487845896,-500.0,0.00035616,120]
[404709259,1770487845907,-500.0,0.00035616,120]
[404709260,1770487845918,-500.0,0.00035616,120]
[404709261,1770487845932,-500.0,0.00035616,120]
[404709262,1770487845942,-500.0,0.00035616,120]
[404709263,1770487845952,-500.0,0.00035616,120]
[404709264,1770487845962,-500.0,0.00035616,120]
[404709265,1770487845972,-500.0,0.00035616,120]
[404709266,1770487845981,-500.0,0.00035616,120]
[404709267,1770487845991,-500.0,0.00035616,120]
[404709268,1770487846001,-500.0,0.00035616,120]
[404709269,1770487846012,-500.0,0.00035616,120]
[404709270,1770487846023,-199.19834239,0.00035616,120]
[404709272,1770487846034,-556.49022284,0.00035616,120]
[404709273,1770487846044,-500.0,0.00035616,120]
[404709275,1770487846056,-378.25137475,0.00035616,120]
[404709276,1770487846067,-500.0,0.00035616,120]
[404709277,1770487846077,-500.0,0.00035616,120]
[404709278,1770487846088,-532.83522704,0.00035616,120]
[404709279,1770487846098,-517.71491526,0.00035616,120]
[404709280,1770487846110,-500.0,0.00035616,120]
[404709281,1770487846121,-500.0,0.00035616,120]
[404709282,1770487846131,-500.0,0.00035616,120]
[404709283,1770487846143,-500.0,0.00035616,120]
[404709284,1770487846155,-500.0,0.00035616,120]
[404709285,1770487846166,-500.0,0.00035616,120]
[404709286,1770487846177,-500.0,0.00035616,120]
[404709287,1770487846188,-500.0,0.00035616,120]
[404709288,1770487846198,-500.0,0.00035616,120]
[404709289,1770487846209,-500.0,0.00035616,120]
[404709290,1770487846220,-500.0,0.00035616,120]
[404709291,1770487846231,-500.0,0.00035616,120]
[404709292,1770487846241,-500.0,0.00035616,120]
[404709293,1770487846251,-500.0,0.00035616,120]
[404709294,1770487846262,-500.0,0.00035616,120]
[404709295,1770487846275,-500.0,0.00035616,7]
[404709296,1770487846287,-500.0,0.00035616,120]
[404709297,1770487846299,-498.0,0.00035616,120]
[404709298,1770487846310,-500.0,0.00035616,7]
[404709299,1770487846320,-500.0,0.00035616,120]
[404709300,1770487846331,-500.0,0.00035616,120]
[404709301,1770487846343,-500.0,0.00035616,7]
[404709302,1770487846354,-500.0,0.00035616,120]
[404709303,1770487846365,-500.0,0.00035616,7]
[404709304,1770487846376,-500.0,0.00035616,120]
[404709305,1770487846388,-500.0,0.00035616,7]
[404709306,1770487846399,-500.0,0.00035616,7]
[404709307,1770487846411,-500.0,0.00035616,120]
[404709308,1770487846420,-388.99872525,0.00035616,7]
[404709309,1770487846430,-500.0,0.00035616,120]
[404709310,1770487846441,-458.98787034,0.00035616,120]
[404709311,1770487846452,-500.0,0.00035616,120]
[404709312,1770487846463,-500.0,0.00035616,120]
[404709313,1770487846473,-500.0,0.00035616,120]
[404709314,1770487846484,-500.0,0.00035616,120]
[404709315,1770487846497,-500.0,0.00035616,120]
[404709316,1770487846512,-500.0,0.00035616,120]
[404709317,1770487846526,-500.0,0.00035616,120]
[404709318,1770487846537,-500.0,0.00035616,120]
[404709319,1770487846551,-500.0,0.00035616,120]
[404709320,1770487846562,-500.0,0.00035616,120]
[404709321,1770487846574,-500.0,0.00035616,120]
[404709322,1770487846586,-500.0,0.00035616,120]
[404709323,1770487846596,-500.0,0.00035616,120]
[404709324,1770487846608,-500.0,0.00035616,120]
[404709325,1770487846620,-500.0,0.00035616,120]
[404709326,1770487846631,-500.0,0.00035616,120]
[404709327,1770487846641,-500.0,0.00035616,120]
[404709328,1770487846651,-521.6,0.00035616,120]
[404709329,1770487846661,-500.0,0.00035616,120]
[404709330,1770487846671,-500.0,0.00035616,120]
[404709331,1770487846681,-540.98224929,0.00035616,120]
[404709332,1770487846692,-500.0,0.00035616,120]
[404709333,1770487846703,-500.0,0.00035616,120]
[404709334,1770487846713,-500.0,0.00035616,120]
[404709335,1770487846724,-500.0,0.00035616,120]
[404709336,1770487846735,-500.0,0.00035616,120]
[404709337,1770487846747,-500.0,0.00035616,120]
[404709338,1770487846761,-500.0,0.00035616,120]
[404709339,1770487846773,-500.0,0.00035616,120]
[404709340,1770487846784,-500.0,0.00035616,120]
[404709341,1770487846795,-500.0,0.00035616,120]
[404709342,1770487846806,-500.0,0.00035616,120]
[404709343,1770487846817,-500.0,0.00035616,120]
[404709344,1770487846827,-500.0,0.00035616,120]
[404709345,1770487846840,-500.0,0.00035616,120]
[404709346,1770487846851,-500.0,0.00035616,120]
[404709348,1770487846861,-500.0,0.00035616,120]
[404709349,1770487846871,-500.0,0.00035616,120]
[404709350,1770487846882,-500.0,0.00035616,120]
[404709351,1770487846893,-500.0,0.00035616,120]
[404709352,1770487846905,-500.0,0.00035616,120]
[404709353,1770487846916,-500.0,0.00035616,120]
[404709354,1770487846927,-500.0,0.00035616,120]
[404709355,1770487846939,-554.84596563,0.00035616,120]
[404709356,1770487846951,-500.0,0.00035616,120]
[404709357,1770487846962,-523.28522367,0.00035616,120]
[404709358,1770487846972,-500.0,0.00035616,120]
[404709359,1770487846983,-500.0,0.00035616,120]
[404709360,1770487846993,-500.0,0.00035616,120]
[404709361,1770487847003,-484.42981659,0.00035616,120]
[404709362,1770487847013,-500.0,0.00035616,120]
[404709363,1770487847023,-500.0,0.00035616,120]
[404709364,1770487847033,-500.0,0.00035616,120]
[404709365,1770487847043,-500.0,0.00035616,120]
[404709366,1770487847054,-500.0,0.00035616,120]
[404709367,1770487847064,-500.0,0.00035616,120]
[404709368,1770487847075,-500.0,0.00035616,120]
[404709369,1770487847085,-500.0,0.00035616,120]
[404709370,1770487847095,-551.70079655,0.00035616,120]
[404709371,1770487847105,-500.0,0.00035616,120]
[404709372,1770487847115,-500.0,0.00035616,120]
[404709373,1770487847126,-500.0,0.00035616,120]
[404709374,1770487847137,-500.0,0.00035616,120]
[404709375,1770487847148,-500.0,0.00035616,120]
[404709376,1770487847159,-500.0,0.00035616,120]
[404709377,1770487847168,-500.0,0.00035616,120]
[404709378,1770487847178,-577.2044186,0.00035616,120]
[404709379,1770487847188,-520.95925959,0.00035616,120]
[404709380,1770487847198,-500.0,0.00035616,120]
[404709381,1770487847208,-500.0,0.00035616,120]
[404709382,1770487847218,-500.0,0.00035616,120]
[404709383,1770487847229,-500.0,0.00035616,120]
[404709384,1770487847239,-500.0,0.00035616,120]
[404709385,1770487847249,-500.0,0.00035616,120]
[404709386,1770487847261,-500.0,0.00035616,120]
[404709387,1770487847273,-500.0,0.00035616,120]
[404709388,1770487847285,-500.0,0.00035616,120]
[404709389,1770487847295,-500.0,0.00035616,120]
[404709390,1770487847307,-223.36505771,0.00035616,120]
[404709391,1770487847319,-500.0,0.00035616,120]
[404709392,1770487847330,-500.0,0.00035616,120]
[404709393,1770487847341,-500.0,0.00035616,120]
[404709394,1770487847352,-514.89032536,0.00035616,120]
[404709395,1770487847362,-500.0,0.00035616,120]
[404709396,1770487847374,-500.0,0.00035616,120]
[404709397,1770487847385,-500.0,0.00035616,120]
[404709398,1770487847396,-500.0,0.00035616,120]
[404709399,1770487847407,-500.0,0.00035616,120]
[404709400,1770487847419,-500.0,0.00035616,120]
[404709401,1770487847430,-500.0,0.00035616,120]
[404709402,1770487847440,-500.0,0.00035616,120]
[404709403,1770487847451,-500.0,0.00035616,120]
[404709404,1770487847462,-517.64578727,0.00035616,120]
[404709405,1770487847472,-500.0,0.00035616,120]
[404709406,1770487847483,-500.0,0.00035616,120]
[404709407,1770487847494,-500.0,0.00035616,120]
[404709408,1770487847504,-500.0,0.00035616,120]
[404709409,1770487847514,-500.0,0.00035616,120]
[404709410,1770487847524,-500.0,0.00035616,120]
[404709411,1770487847535,-500.0,0.00035616,120]
[404709412,1770487847546,-500.0,0.00035616,120]
[404709413,1770487847556,-500.0,0.00035616,120]
[404709414,1770487847566,-500.0,0.00035616,120]
[404709415,1770487847576,-500.0,0.00035616,120]
[404709416,1770487847587,-500.0,0.00035616,120]
[404709417,1770487847597,-500.0,0.00035616,120]
[404709418,1770487847607,-500.0,0.00035616,120]
[404709419,1770487847617,-556.71316976,0.00035616,120]
[404709420,1770487847627,-500.0,0.00035616,120]
[404709421,1770487847637,-500.0,0.00035616,120]
[404709422,1770487847647,-500.0,0.00035616,120]
[404709423,1770487847658,-500.0,0.00035616,120]
[404709424,1770487847668,-500.0,0.00035616,120]
[404709425,1770487847677,-500.0,0.00035616,120]
[404709426,1770487847687,-191.06052013,0.00035616,120]
[404709427,1770487847696,-500.0,0.00035616,120]
[404709428,1770487847707,-500.0,0.00035616,120]
[404709429,1770487847717,-500.0,0.00035616,120]
[404709430,1770487847726,-500.0,0.00035616,120]
[404709431,1770487847736,-500.0,0.00035616,120]
[404709432,1770487847746,-500.0,0.00035616,120]
[404709433,1770487847756,-500.0,0.00035616,120]
[404709434,1770487847768,-500.0,0.00035616,120]
[404709435,1770487847778,-500.0,0.00035616,120]
[404709436,1770487847791,-500.0,0.00035616,120]
[404709437,1770487847802,-500.0,0.00035616,120]
[404709438,1770487847812,-500.0,0.00035616,120]
[404709439,1770487847822,-500.0,0.00035616,120]
[404709440,1770487847832,-500.0,0.00035616,120]
[404709441,1770487847842,-500.0,0.00035616,120]
[404709442,1770487847852,-500.0,0.00035616,120]
[404709443,1770487847862,-555.71,0.00035616,120]
[404709444,1770487847872,-500.0,0.00035616,120]
[404709445,1770487847882,-500.0,0.00035616,120]
[404709446,1770487847892,-527.88602442,0.00035616,120]
[404709447,1770487847902,-555.71,0.00035616,120]
[404709448,1770487847912,-500.0,0.00035616,120]
[404709449,1770487847922,-576.32348193,0.00035616,120]
[404709450,1770487847932,-555.71,0.00035616,120]
[404709451,1770487847942,-555.71,0.00035616,120]
[404709452,1770487847953,-561.91816383,0.00035616,120]
[404709453,1770487847965,-500.0,0.00035616,120]
[404709454,1770487847975,-555.71,0.00035616,120]
[404709455,1770487847986,-500.0,0.00035616,120]
[404709456,1770487847997,-500.0,0.00035616,120]
[404709457,1770487848007,-500.0,0.00035616,120]
[404709458,1770487848018,-555.71,0.00035616,120]
[404709459,1770487848029,-500.0,0.00035616,120]
[404709460,1770487848039,-555.71,0.00035616,120]
[404709461,1770487848051,-500.0,0.00035616,120]
[404709462,1770487848061,-500.0,0.00035616,120]
[404709463,1770487848072,-555.71,0.00035616,120]
[404709464,1770487848083,-508.22278729,0.00035616,120]
[404709465,1770487848094,-500.0,0.00035616,120]
[404709466,1770487848106,-555.71,0.00035616,120]
[404709467,1770487848116,-555.71,0.00035616,120]
[404709468,1770487848127,-555.71,0.00035616,120]
[404709469,1770487848138,-555.71,0.00035616,120]
[404709470,1770487848148,-318.07062284,0.00035616,7]
[404709471,1770487848159,-20366.33,0.000357,14]
[404709472,1770487848170,-507.0,0.00035714,18]
[404709473,1770487848180,-153.93021215,0.00036093,2]
[404709474,1770487848443,-19390.65,0.000361,2]
[404709475,1770487848461,-1501.264,0.00036166,44]
[404709476,1770487848471,-187.678,0.00036166,44]
[404709477,1770487848480,-2223.87915646,0.00036172,2]
[404709478,1770487848490,-166.66,0.0003623,2]
[404709479,1770487848499,-402.0,0.00036247,2]
[404709480,1770487848508,-150.0,0.0003643,2]
[404709481,1770487848518,-164.8272093,0.000367,120]
[404709482,1770487848527,-161.09653074,0.000367,120]
[404709483,1770487848537,-2133.0,0.00037,5]
[404709484,1770487848547,-166.66,0.00037387,2]
[404709485,1770487848556,-153.93021215,0.00037721,2]
[404709486,1770487848566,-178.46,0.000378,14]
[404709487,1770487848576,-1855.71771429,0.00037913,2]
[404709488,1770487848586,-507.0,0.00037929,20]
[404709489,1770487848595,-501.5,0.00038,30]
[404709490,1770487848605,-150.0,0.00038252,2]
[404709491,1770487848614,-166.66,0.00038545,2]
[404709492,1770487848624,-20366.33,0.000386,14]
[404709493,1770487848634,-155.94692329,0.0003861,30]
[404709494,1770487848643,-150.0,0.0003861,30]
[404709495,1770487848653,-500.0,0.000387,120]
[404709496,1770487848662,-500.0,0.000387,120]
[404709497,1770487848671,-500.0,0.000387,120]
[404709498,1770487848681,-500.0,0.000387,120]
[404709499,1770487848690,-500.0,0.000387,120]
[404709500,1770487848700,-501.5,0.0003872,30]
[404709501,1770487848710,-295.0,0.00039076,120]
[404709502,1770487848720,-153.93021215,0.0003935,2]
[404709503,1770487848730,-501.5,0.0003944,30]
[404709504,1770487848740,-1755.18,0.000395,120]
[404709505,1770487848750,-300.0,0.00039688,2]
[404709506,1770487848763,-300.0,0.00039688,2]
[404709507,1770487848772,-166.66,0.00039703,2]
[404709508,1770487848782,-1052.45415786,0.00039788,20]
[404709509,1770487848792,-1055.27872705,0.00039788,20]
[404709510,1770487848803,-1053.73106479,0.00039788,20]
[404709511,1770487848813,-1040.83658509,0.00039788,20]
[404709512,1770487848822,-1078.46220951,0.00039788,20]
[404709513,1770487848832,-1075.35147369,0.00039788,20]
[404709514,1770487848842,-2965.36,0.000398,14]
[404709515,1770487848852,-500.0,0.0004,2]
[404709516,1770487848861,-256.08,0.0004,120]
[404709517,1770487848872,-336.68,0.0004,120]
[404709518,1770487848882,-250.0,0.0004,45]
[404709519,1770487848891,-316.49,0.0004,120]
[404709520,1770487848900,-152.0,0.0004,120]
[404709521,1770487848910,-425.19667623,0.0004,120]
[404709522,1770487848919,-250.0,0.0004,45]
[404709523,1770487848928,-250.0,0.0004,45]
[404709524,1770487848938,-152.0,0.0004,120]
[404709525,1770487848948,-250.0,0.0004,45]
[404709526,1770487848958,-2223.87915646,0.00040089,28]
[404709527,1770487848968,-507.0,0.00040143,22]
[404709528,1770487848978,-501.5,0.0004016,30]
[404709529,1770487848988,-150.0,0.00040165,2]
[404709530,1770487848998,-13213.14019981,0.000405,120]
[404709531,1770487849007,-160.0,0.000405,120]
[404709532,1770487849017,-250.0,0.000405,45]
[404709533,1770487849027,-250.0,0.000405,45]
[404709534,1770487849037,-250.0,0.000405,45]
[404709535,1770487849047,-250.0,0.000405,45]
[404709536,1770487849056,-163.0,0.0004062,11]
[404709537,1770487849066,-152.0,0.000407,120]
[404709538,1770487849076,-166.66,0.00040861,2]
[404709539,1770487849086,-501.5,0.0004088,120]
[404709540,1770487849096,-284.88597226,0.00040899,60]
[404709541,1770487849106,-2000.0,0.000409,7]
[404709542,1770487849115,-152.0,0.000409,120]
[404709543,1770487849125,-20366.33,0.000409,14]
[404709544,1770487849134,-1855.71771429,0.00040959,15]
[404709545,1770487849143,-153.93021215,0.00040979,2]
[404709546,1770487849153,-250.0,0.00041,45]
[404709547,1770487849162,-250.0,0.00041,45]
[404709548,1770487849173,-250.0,0.00041,45]
[404709549,1770487849183,-250.0,0.00041,45]
[404709550,1770487849193,-300.0,0.00041068,22]
[404709551,1770487849203,-500.0,0.00041095,120]
[404709552,1770487849213,-500.0,0.00041095,120]
[404709553,1770487849223,-500.0,0.00041095,120]
[404709554,1770487849233,-500.0,0.00041095,120]
[404709555,1770487849243,-500.0,0.00041095,120]
[404709556,1770487849252,-500.0,0.00041095,120]
[404709557,1770487849262,-500.0,0.00041095,120]
[404709558,1770487849272,-500.0,0.00041095,120]
[404709559,1770487849281,-500.0,0.00041095,120]
[404709560,1770487849291,-500.0,0.00041095,120]
[404709561,1770487849301,-500.0,0.00041095,120]
[404709562,1770487849311,-500.0,0.00041095,120]
[404709563,1770487849321,-500.0,0.00041095,120]
[404709564,1770487849330,-479.29848679,0.00041095,120]
[404709565,1770487849340,-500.0,0.00041095,120]
[404709566,1770487849349,-500.0,0.00041095,120]
[404709567,1770487849359,-500.0,0.00041095,120]
[404709568,1770487849368,-500.0,0.00041095,120]
[404709569,1770487849378,-500.0,0.00041095,120]
[404709570,1770487849387,-500.0,0.00041095,120]
[404709571,1770487849396,-500.0,0.00041095,120]
[404709572,1770487849404,-500.0,0.00041095,120]
[404709573,1770487849413,-464.88634794,0.00041095,120]
[404709574,1770487849421,-425.0,0.00041096,120]
[404709575,1770487849432,-150.22,0.00041365,120]
[404709576,1770487849442,-152.4,0.00041365,120]
[404709577,1770487849452,-150.22,0.00041465,120]
[404709578,1770487849463,-152.4,0.00041465,120]
[404709579,1770487849474,-250.0,0.000415,45]
[404709580,1770487849485,-152.0,0.000415,120]
[404709581,1770487849495,-500.0,0.000415,120]
[404709582,1770487849505,-250.0,0.000415,45]
[404709583,1770487849516,-250.0,0.000415,45]
[404709584,1770487849526,-535.0,0.0004155,120]
[404709585,1770487849536,-150.22,0.00041565,120]
[404709586,1770487849546,-152.4,0.00041565,120]
[404709587,1770487849555,-501.5,0.000416,120]
[404709588,1770487849565,-150.22,0.00041665,120]
[404709589,1770487849575,-152.4,0.00041665,120]
[404709590,1770487849585,-300.080207,0.00041712,107]
[404709591,1770487849594,-150.22,0.00041765,120]
[404709592,1770487849603,-152.4,0.00041765,120]
[404709593,1770487849615,-150.22,0.00041865,120]
[404709594,1770487849625,-152.4,0.00041865,120]
[404709595,1770487849635,-152.0,0.000419,120]
[404709596,1770487849644,-150.22,0.00041965,120]
[404709597,1770487849653,-152.4,0.00041965,120]
[404709598,1770487849661,-500.0,0.00042,2]
[404709599,1770487849669,-150.0,0.00042,53]
[404709600,1770487849677,-499.99999901,0.00042,120]
[404709601,1770487849686,-150.22,0.00042065,120]
[404709602,1770487849698,-152.4,0.00042065,120]
[404709603,1770487849709,-150.22,0.00042165,120]
[404709604,1770487849720,-152.4,0.00042165,120]
[404709605,1770487849731,-150.0,0.00042173,120]
[404709606,1770487849744,-152.0,0.000422,120]
[404709607,1770487849754,-2000.0,0.000422,7]
[404709608,1770487849770,-500.0,0.00042211,2]
[404709609,1770487849781,-150.22,0.00042265,120]
[404709610,1770487849792,-152.4,0.00042265,120]
[404709611,1770487849802,-302.28,0.000423,30]
[404709612,1770487849812,-507.0,0.00042357,24]
[404709613,1770487849822,-150.22,0.00042365,120]
[404709614,1770487849831,-152.4,0.00042365,120]
[404709615,1770487849842,-20366.33,0.000424,14]
[404709616,1770487849851,-150.22,0.00042465,120]
[404709617,1770487849860,-152.4,0.00042465,120]
[404709618,1770487849870,-20000.0,0.00042466,120]
[404709619,1770487849879,-150.22,0.00042565,120]
[404709620,1770487849888,-152.4,0.00042565,120]
[404709621,1770487849897,-153.93021215,0.00042608,2]
[404709622,1770487849906,-150.22,0.00042665,120]
[404709623,1770487849916,-152.4,0.00042665,120]
[404709624,1770487849925,-150.0,0.00042676,120]
[404709625,1770487849935,-500.0,0.00042762,120]
[404709626,1770487849944,-48622.0,0.00042763,30]
[404709627,1770487849953,-150.34,0.00042765,120]
[404709628,1770487849963,-152.4,0.00042765,120]
[404709629,1770487849972,-515.94894661,0.00042777,7]
[404709630,1770487849982,-152.0,0.000428,120]
[404709631,1770487849991,-152.4,0.00042865,120]
[404709632,1770487850001,-152.4,0.00042965,120]
[404709633,1770487850011,-160.0,0.00043,30]
[404709634,1770487850020,-152.0,0.00043,120]
[404709635,1770487850030,-172.0,0.00043,90]
[404709636,1770487850040,-165.0,0.00043,90]
[404709637,1770487850050,-172.0,0.00043014,90]
[404709638,1770487850060,-152.4,0.00043065,120]
[404709639,1770487850069,-152.4,0.00043165,120]
[404709640,1770487850079,-500.0,0.00043203,2]
[404709641,1770487850088,-48622.0,0.00043203,30]
[404709642,1770487850098,-1753.1601835,0.00043225,50]
[404709643,1770487850107,-152.4,0.00043265,120]
[404709644,1770487850118,-20000.0,0.00043287,120]
[404709645,1770487850127,-151.0,0.00043287,60]
[404709646,1770487850136,-200.0,0.00043306,120]
[404709647,1770487850146,-152.4,0.00043365,120]
[404709648,1770487850156,-152.4,0.00043465,120]
[404709649,1770487850165,-152.52,0.00043565,120]
[404709650,1770487850174,-48622.0,0.00043644,30]
[404709651,1770487850183,-38265.75247919,0.0004368,2]
[404709652,1770487850193,-152.0,0.000437,120]
[404709653,1770487850203,-152.0,0.000437,120]
[404709654,1770487850213,-20366.33,0.000437,14]
[404709655,1770487850222,-150.0,0.00043723,120]
[404709656,1770487850231,-1000.0,0.00043778,120]